bitfinex-derivatives/quotes_BTCF0:USTF0_20250207
["timestamp","ask_amount","ask_price","bid_price","bid_amount"]
[1738955350629,0.3608,97437.0,97429.0,0.00015401]
[1738955351129,0.3608,97437.0,97430.0,0.2052037]
[1738955351721,0.40185,97437.0,97430.0,0.2052037]
[1738955352126,0.40185,97437.0,97429.0,0.01686645]
[1738955352328,0.2052037,97430.0,97429.0,0.00515401]
[1738955352728,0.2052037,97430.0,97429.0,0.00015401]
[1738955353128,0.3608,97434.0,97403.0,0.07508]
[1738955353333,0.3608,97404.0,97397.0,0.2052722]
[1738955353626,0.3608,97404.0,97393.0,0.07508]
[1738955353932,0.1102,97411.0,97405.0,0.205255]
[1738955354232,0.3608,97412.0,97400.0,0.12133326]
[1738955354429,0.00015401,97418.0,97417.0,0.205231]
[1738955356024,0.00015401,97418.0,97417.0,0.211231]
[1738955356025,0.00115401,97418.0,97417.0,0.211231]
[1738955357330,0.00015401,97418.0,97417.0,0.205231]
[1738955357531,0.00115401,97418.0,97417.0,0.23011927]
[1738955357925,0.00055,97434.0,97417.0,0.02488827]
[1738955358234,0.00055,97434.0,97433.0,0.2051973]
[1738955358633,0.2051597,97451.0,97434.0,0.2051944]
[1738955358829,0.2051541,97454.0,97435.0,0.205192]
[1738955359135,0.00010157,97446.0,97438.0,0.2051852]
[1738955359936,0.00010157,97446.0,97432.0,0.5659979]
[1738955360235,0.00010157,97446.0,97432.0,0.3608]
[1738955360432,0.00010157,97446.0,97437.0,0.2051886]
[1738955360737,0.00210157,97446.0,97437.0,0.2051886]
[1738955360937,0.00310157,97446.0,97437.0,0.2051886]
[1738955361638,0.00210157,97446.0,97437.0,0.2051886]
[1738955361934,0.00310157,97446.0,97437.0,0.2051886]
[1738955362546,0.04414157,97446.0,97441.0,0.2051785]
[1738955362841,0.04914157,97446.0,97441.0,0.2051785]
[1738955363336,0.04314157,97446.0,97441.0,0.2051785]
[1738955363538,0.04214157,97446.0,97441.0,0.2051785]
[1738955364131,0.04214157,97446.0,97437.0,0.001]
[1738955364333,0.04214157,97446.0,97443.0,0.2051749]
[1738955364534,0.04214157,97446.0,97444.0,0.2051722]
[1738955364735,0.04214157,97446.0,97441.0,0.001]
[1738955364736,0.04214157,97446.0,97445.0,0.2051721]
[1738955364935,0.00110157,97446.0,97445.0,0.2051721]
[1738955365443,0.00010157,97446.0,97445.0,0.2051721]
[1738955365741,0.00110157,97446.0,97445.0,0.2051721]
[1738955366842,0.00110157,97446.0,97442.0,0.12018965]
[1738955367039,0.00110157,97446.0,97445.0,0.001]
[1738955367246,0.04214157,97446.0,97445.0,0.2061721]
[1738955367943,0.04214157,97446.0,97445.0,0.2051721]
[1738955368341,0.00110157,97446.0,97445.0,0.2051721]
[1738955369840,0.00110157,97446.0,97445.0,0.2061721]
[1738955370248,0.00110157,97446.0,97445.0,0.001]
[1738955370650,0.00110157,97446.0,97445.0,0.2061721]
[1738955372138,0.00110157,97446.0,97445.0,0.22121059]
[1738955374347,0.00110157,97446.0,97445.0,0.01603849]
[1738955375254,0.00110157,97446.0,97445.0,0.22121059]
[1738955377838,0.04214157,97446.0,97445.0,0.22121059]
[1738955381350,0.40294157,97446.0,97445.0,0.22121059]
[1738955381554,0.04214157,97446.0,97445.0,0.22121059]
[1738955382256,0.04214157,97446.0,97445.0,0.29625059]
[1738955382446,0.04214157,97446.0,97445.0,0.22121059]
[1738955382640,0.04214157,97446.0,97445.0,0.29625059]
[1738955384353,0.04214157,97446.0,97445.0,0.09107849]
[1738955384949,0.04214157,97446.0,97445.0,0.29625059]
[1738955387457,0.04214157,97446.0,97445.0,0.09107849]
[1738955388756,0.04214157,97446.0,97445.0,0.29625059]
[1738955389958,0.04214157,97446.0,97445.0,0.09107849]
[1738955390656,0.24731157,97446.0,97445.0,0.01603849]
[1738955390855,0.24731157,97446.0,97445.0,0.001]
[1738955391049,0.2051935,97435.0,97424.0,0.07504]
[1738955391253,0.3608,97432.0,97426.0,0.26062285]
[1738955391963,0.2052097,97428.0,97426.0,0.26062285]
[1738955392353,0.20521,97427.0,97426.0,0.26662285]
[1738955392859,0.3608,97432.0,97426.0,0.26962285]
[1738955392860,0.5660011,97432.0,97426.0,0.26962285]
[1738955393062,0.001,97428.0,97426.0,0.02701157]
[1738955393263,0.002,97428.0,97426.0,0.03001157]
[1738955393760,0.002,97428.0,97427.0,0.20521]
[1738955393966,0.001,97428.0,97427.0,0.20521]
[1738955394265,0.001,97427.0,97426.0,0.23522367]
[1738955394958,0.04205,97427.0,97426.0,0.23522367]
[1738955395465,0.15081308,97437.0,97436.0,0.205191]
[1738955395667,0.15081308,97437.0,97436.0,0.280231]
[1738955396056,0.15275308,97437.0,97436.0,0.280231]
[1738955396661,0.00194,97437.0,97436.0,0.280231]
[1738955396962,0.00194,97437.0,97436.0,0.07704]
[1738955397162,0.00194,97437.0,97436.0,0.287231]
[1738955399872,0.04104,97444.0,97443.0,0.2051763]
[1738955400169,0.3608,97450.0,97443.0,0.2051763]
[1738955400369,0.3608,97450.0,97445.0,0.2051721]
[1738955403369,0.3608,97468.0,97442.0,0.3608]
[1738955403575,0.3608,97468.0,97467.0,0.2051258]
[1738955403774,0.3608,97468.0,97457.0,0.075]
[1738955404271,0.3608,97459.0,97443.0,0.3618]
[1738955404472,0.1341,97458.0,97453.0,0.00015393]
[1738955404666,0.2051742,97444.0,97443.0,0.001]
[1738955404971,0.3608,97444.0,97438.0,0.26084038]
[1738955405175,0.1299,97443.0,97438.0,0.26084038]
[1738955405566,0.3350763,97443.0,97442.0,0.001]
[1738955405773,0.1299,97443.0,97420.0,0.83368]
[1738955405970,0.3608,97424.0,97420.0,0.83368]
[1738955406173,0.3608,97424.0,97422.0,0.00015393]
[1738955406576,0.00015367,97432.0,97422.0,0.00015393]
[1738955406878,0.00015367,97432.0,97424.0,0.2052161]
[1738955407880,0.00115367,97432.0,97428.0,0.205207]
[1738955408081,0.00115367,97432.0,97429.0,0.2052056]
[1738955408282,0.00115367,97432.0,97422.0,0.00715393]
[1738955408591,0.00015367,97432.0,97430.0,0.2052035]
[1738955410686,0.1343,97457.0,97431.0,0.0513003]
[1738955410989,0.1343,97457.0,97443.0,0.12131826]
[1738955411194,0.3394471,97457.0,97443.0,0.12131826]
[1738955411994,0.3608,97444.0,97440.0,0.12131826]
[1738955412188,0.3608,97444.0,97434.0,0.12131826]
[1738955412394,0.3608,97435.0,97428.0,0.075]
[1738955412798,0.3608,97435.0,97432.0,0.2051987]
[1738955413290,0.3608,97435.0,97433.0,0.205197]
[1738955414291,0.3618,97435.0,97433.0,0.205197]
[1738955414884,0.3608,97435.0,97433.0,0.205197]
[1738955415090,0.3618,97435.0,97433.0,0.211197]
[1738955415596,0.3618,97435.0,97433.0,0.214197]
[1738955415799,0.3618,97435.0,97433.0,0.009]
[1738955415994,0.03768617,97436.0,97433.0,0.009]
[1738955416300,0.3608,97445.0,97438.0,0.2051868]
[1738955416899,0.3608,97445.0,97435.0,0.12131826]
[1738955417095,0.3608,97445.0,97439.0,0.2051841]
[1738955418091,0.3618,97445.0,97439.0,0.2051841]
[1738955418486,0.3618,97445.0,97435.0,0.12131826]
[1738955418894,0.15081308,97461.0,97435.0,0.25263652]
[1738955419094,0.15081308,97461.0,97460.0,0.2051405]
[1738955419493,0.3608,97462.0,97460.0,0.2051405]
[1738955420303,0.006,97461.0,97460.0,0.001]
[1738955420497,0.2051574,97452.0,97451.0,0.00015393]
[1738955420688,0.3608,97452.0,97430.0,0.12131826]
[1738955420996,0.3608,97452.0,97444.0,0.2051739]
[1738955421191,0.3608,97452.0,97445.0,0.205172]
[1738955421497,0.5659579,97452.0,97440.0,0.12131826]
[1738955421700,0.3608,97452.0,97448.0,0.2051644]
[1738955423096,0.3638,97452.0,97448.0,0.2051644]
[1738955423305,0.3658,97452.0,97448.0,0.2051644]
[1738955423600,0.3628,97452.0,97448.0,0.2051644]
[1738955423903,0.3658,97452.0,97448.0,0.2051644]
[1738955424396,0.3658,97452.0,97444.0,0.205174]
[1738955424699,0.3658,97452.0,97436.0,0.00015393]
[1738955424899,0.3608,97441.0,97436.0,0.00015393]
[1738955425099,0.2051889,97437.0,97436.0,0.00015393]
[1738955425288,0.3608,97441.0,97436.0,0.00015393]
[1738955426399,0.3608,97441.0,97436.0,0.00115393]
[1738955426606,0.2051889,97437.0,97436.0,0.00115393]
[1738955427101,0.2051889,97437.0,97436.0,0.00215393]
[1738955427802,0.3608,97441.0,97436.0,0.00415393]
[1738955428099,0.3608,97441.0,97440.0,0.2051826]
[1738955429011,0.3608,97441.0,97436.0,0.20934463]
[1738955429190,0.3608,97441.0,97436.0,0.00415393]
[1738955429394,0.3628,97441.0,97436.0,0.00115393]
[1738955429789,0.3628,97441.0,97436.0,0.00015393]
[1738955430195,0.3608,97441.0,97440.0,0.2051826]
[1738955431300,0.3608,97441.0,97436.0,0.00015393]
[1738955431301,0.3608,97441.0,97436.0,0.00215393]
[1738955432198,0.3608,97441.0,97440.0,0.001]
[1738955432905,0.3638,97441.0,97440.0,0.003]
[1738955433303,0.3608,97441.0,97440.0,0.003]
[1738955433505,0.3628,97441.0,97440.0,0.003]
[1738955433700,0.3638,97441.0,97437.0,0.2051888]
[1738955434402,0.3628,97441.0,97440.0,0.2071826]
[1738955434802,0.3608,97441.0,97440.0,0.2071826]
[1738955435001,0.3608,97441.0,97440.0,0.2081826]
[1738955435903,0.01365205,97445.0,97444.0,0.2051742]
[1738955436304,0.3608,97452.0,97451.0,0.2051595]
[1738955436900,0.00015393,97456.0,97455.0,0.205151]
[1738955438303,0.3608,97469.0,97451.0,0.009]
[1738955438611,0.3608,97475.0,97467.0,0.2051258]
[1738955439203,0.3608,97475.0,97462.0,0.43576]
[1738955439506,0.3608,97465.0,97459.0,0.00015393]
[1738955440706,0.3608,97465.0,97459.0,0.00415393]
[1738955440911,0.3608,97465.0,97462.0,0.2051362]
[1738955441113,0.3608,97465.0,97463.0,0.2051342]
[1738955441323,0.3608,97465.0,97464.0,0.2051321]
[1738955441504,0.3608,97475.0,97459.0,0.00415393]
[1738955441704,0.3608,97475.0,97472.0,0.2051148]
[1738955442009,0.3608,97486.0,97476.0,0.2051052]
[1738955442203,0.2050942,97482.0,97477.0,0.1384]
[1738955442400,0.3608,97483.0,97477.0,0.1384]
[1738955442804,0.3608,97483.0,97478.0,0.2051026]
[1738955443004,0.3608,97483.0,97477.0,0.1384]
[1738955443400,0.004,97482.0,97477.0,0.1384]
[1738955443608,0.2050969,97481.0,97477.0,0.1384]
[1738955443916,0.2051014,97479.0,97477.0,0.1384]
[1738955444107,0.3608,97478.0,97477.0,0.1384]
[1738955444306,0.3608,97478.0,97477.0,0.15224757]
[1738955445716,0.3638,97478.0,97477.0,0.15224757]
[1738955446016,0.5689026,97478.0,97477.0,0.01384757]
[1738955446315,0.2051333,97464.0,97450.0,0.12131826]
[1738955446518,0.7216,97460.0,97448.0,0.2759]
[1738955446703,0.7216,97460.0,97450.0,0.12131826]
[1738955447612,0.7216,97460.0,97459.0,0.00515393]
[1738955448107,0.7216,97460.0,97459.0,0.00915393]
[1738955449019,0.7216,97460.0,97459.0,0.00015393]
[1738955449218,0.7266,97460.0,97459.0,0.00615393]
[1738955449710,0.7256,97460.0,97459.0,0.00615393]
[1738955449910,0.7246,97460.0,97459.0,0.00415393]
[1738955450722,0.7256,97460.0,97459.0,0.00615393]
[1738955451314,0.7226,97460.0,97459.0,0.01015393]
[1738955451525,0.7226,97460.0,97450.0,0.12131826]
[1738955451820,0.3608,97454.0,97450.0,0.12131826]
[1738955452023,0.3608,97454.0,97442.0,0.2051778]
[1738955452319,0.3608,97454.0,97453.0,0.2051553]
[1738955453417,0.003,97460.0,97459.0,0.2051426]
[1738955453924,0.002,97460.0,97459.0,0.1641026]
[1738955454113,0.3608,97476.0,97470.0,0.2051192]
[1738955455215,0.3608,97482.0,97466.0,0.12131826]
[1738955455416,0.3608,97482.0,97472.0,0.12131826]
[1738955455611,0.3608,97482.0,97476.0,0.2051068]
[1738955455816,0.3608,97482.0,97473.0,0.1415]
[1738955456328,0.3608,97482.0,97476.0,0.2051069]
[1738955456521,0.3608,97482.0,97473.0,0.1415]
[1738955456729,0.04103,97483.0,97473.0,0.1415]
[1738955457217,0.005,97482.0,97479.0,0.2050999]
[1738955457418,0.005,97482.0,97480.0,0.2733]
[1738955457622,0.009,97482.0,97480.0,0.2733]
[1738955458226,0.005,97482.0,97480.0,0.2733]
[1738955459016,0.009,97482.0,97480.0,0.2733]
[1738955459523,0.5698943,97482.0,97473.0,0.1425]
[1738955460222,0.5698943,97482.0,97473.0,0.15541965]
[1738955460423,0.5738943,97482.0,97473.0,0.15541965]
[1738955460915,0.5698943,97482.0,97473.0,0.15541965]
[1738955461114,0.3608,97474.0,97473.0,0.15541965]
[1738955462114,0.5659111,97474.0,97473.0,0.01391965]
[1738955462310,0.5659111,97474.0,97468.0,0.1401]
[1738955462916,0.3618,97474.0,97468.0,0.1401]
[1738955464028,0.3618,97474.0,97473.0,0.2051132]
[1738955464229,0.3628,97474.0,97473.0,0.2051132]
[1738955464817,0.3618,97474.0,97473.0,0.2051132]
[1738955465026,0.3628,97474.0,97473.0,0.2051132]
[1738955465414,0.3618,97474.0,97473.0,0.2051132]
[1738955465619,0.3628,97474.0,97473.0,0.2051132]
[1738955466424,0.3618,97474.0,97469.0,0.1354]
[1738955466729,0.2051132,97473.0,97468.0,0.15426795]
[1738955467031,0.36416,97474.0,97468.0,0.15426795]
[1738955467216,0.3628,97474.0,97468.0,0.15426795]
[1738955467420,0.3618,97474.0,97468.0,0.15426795]
[1738955467622,0.3628,97474.0,97468.0,0.15426795]
[1738955467924,0.3608,97471.0,97468.0,0.01416795]
[1738955468129,0.2051216,97469.0,97464.0,0.00015393]
[1738955468324,0.2051239,97468.0,97464.0,0.00015393]
[1738955468524,0.3608,97471.0,97464.0,0.00015393]
[1738955469621,0.3608,97471.0,97464.0,0.01413855]
[1738955470023,0.2051253,97468.0,97464.0,0.01413855]
[1738955470226,0.20513,97465.0,97464.0,0.01513855]
[1738955470432,0.2051486,97457.0,97450.0,0.21418]
[1738955470637,0.3608,97451.0,97450.0,0.21418]
[1738955471233,0.3608,97451.0,97450.0,0.1393]
[1738955471736,0.3608,97451.0,97443.0,0.2800554]
[1738955471737,0.3608,97451.0,97443.0,0.07488]
[1738955472037,0.3608,97451.0,97448.0,0.2051639]
[1738955472232,0.3608,97451.0,97450.0,0.005]
[1738955472537,0.3608,97451.0,97450.0,0.2101616]
[1738955473035,0.2789,97470.0,97450.0,0.2101616]
[1738955473036,0.3608,97467.0,97451.0,0.0512895]
[1738955473238,0.3608,97467.0,97466.0,0.2051279]
[1738955474536,0.36208,97484.0,97473.0,0.2051132]
[1738955474834,0.3608,97484.0,97476.0,0.205106]
[1738955475832,0.3608,97484.0,97479.0,0.2050986]
[1738955476035,0.3608,97484.0,97480.0,0.1358]
[1738955476735,0.2050938,97483.0,97466.0,0.001]
[1738955476941,0.3608,97467.0,97466.0,0.001]
[1738955477143,0.3608,97467.0,97465.0,0.2786]
[1738955477334,0.3608,97467.0,97465.0,0.29223754]
[1738955477534,0.3608,97467.0,97465.0,0.49736554]
[1738955477729,0.3608,97467.0,97465.0,0.29223754]
[1738955478041,0.3608,97467.0,97466.0,0.2051279]
[1738955478438,0.04103,97468.0,97467.0,0.2051258]
[1738955479243,0.3608,97484.0,97483.0,0.2050922]
[1738955479743,0.3608,97489.0,97488.0,0.2050816]
[1738955479939,0.3608,97504.0,97498.0,0.2050606]
[1738955480244,0.3608,97504.0,97490.0,0.12131826]
[1738955480437,0.3608,97504.0,97499.0,0.2050585]
[1738955481742,0.04102,97506.0,97499.0,0.2050585]
[1738955481943,0.109,97500.0,97499.0,0.2060585]
[1738955482445,0.106,97500.0,97499.0,0.2060585]
[1738955482744,0.04102,97506.0,97499.0,0.2060585]
[1738955482745,0.04102,97506.0,97505.0,0.2050459]
[1738955483041,0.3608,97513.0,97499.0,0.002]
[1738955483240,0.3608,97525.0,97519.0,0.2050164]
[1738955484139,0.3608,97525.0,97515.0,0.2050245]
[1738955484542,0.3608,97525.0,97515.0,0.01347774]
[1738955484838,0.3608,97525.0,97515.0,0.2050247]
[1738955485041,0.3608,97525.0,97517.0,0.2050206]
[1738955485545,0.3608,97524.0,97517.0,0.2050206]
[1738955485741,0.15781308,97520.0,97517.0,0.2050206]
[1738955485947,0.016,97520.0,97519.0,0.2050164]
[1738955487339,0.04101,97526.0,97517.0,0.001]
[1738955487544,0.3608,97548.0,97522.0,0.3608]
[1738955487749,0.5657568,97548.0,97530.0,0.12131826]
[1738955488042,0.36208,97548.0,97530.0,0.12131826]
[1738955488244,0.3608,97548.0,97540.0,0.2049719]
[1738955488834,0.4018,97548.0,97541.0,0.2049702]
[1738955489038,0.4018,97548.0,97535.0,0.2766]
[1738955489253,0.4108,97548.0,97538.0,0.2049754]
[1738955489440,0.4168,97548.0,97538.0,0.2049754]
[1738955489744,0.4168,97548.0,97538.0,0.32629366]
[1738955490046,0.4168,97548.0,97542.0,0.2049678]
[1738955490254,0.4168,97548.0,97540.0,0.001]
[1738955491049,0.4118,97548.0,97545.0,0.2049615]
[1738955491246,0.4118,97548.0,97542.0,0.2049661]
[1738955491445,0.3708,97548.0,97544.0,0.2049636]
[1738955491640,0.3708,97548.0,97540.0,0.002]
[1738955491840,0.3618,97548.0,97547.0,0.2049576]
[1738955492045,0.3708,97548.0,97547.0,0.2049576]
[1738955492439,0.3708,97548.0,97545.0,0.001]
[1738955492651,0.3618,97548.0,97545.0,0.001]
[1738955492845,0.3708,97548.0,97544.0,0.2049633]
[1738955493246,0.3708,97548.0,97545.0,0.2049607]
[1738955493447,0.3618,97548.0,97545.0,0.2049607]
[1738955493650,0.3638,97548.0,97547.0,0.2049576]
[1738955494350,0.3638,97548.0,97547.0,0.2059576]
[1738955494653,0.003,97548.0,97547.0,0.2059576]
[1738955495149,0.01,97548.0,97547.0,0.2069576]
[1738955495741,0.10557965,97566.0,97564.0,0.2049213]
[1738955495948,0.2048885,97580.0,97566.0,0.2049167]
[1738955496141,0.3608,97582.0,97563.0,0.204924]
[1738955496341,0.3608,97582.0,97562.0,0.12131826]
[1738955496537,0.3608,97574.0,97572.0,0.12131826]
[1738955496741,0.2049179,97566.0,97564.0,0.12131826]
[1738955496946,0.3608,97565.0,97555.0,0.00015377]
[1738955497151,0.2049387,97556.0,97555.0,0.00015377]
[1738955497451,0.3608,97557.0,97555.0,0.00015377]
[1738955497858,0.2049387,97556.0,97555.0,0.00015377]
[1738955498749,0.3608,97557.0,97555.0,0.00015377]
[1738955500246,0.3608,97557.0,97556.0,0.2049387]
[1738955500447,0.3608,97557.0,97556.0,0.4786387]
[1738955500654,0.36208,97565.0,97564.0,0.2049219]
[1738955500952,0.3608,97565.0,97557.0,0.0512341]
[1738955501150,0.3608,97565.0,97564.0,0.2049219]
[1738955502360,0.3608,97565.0,97559.0,0.2049323]
[1738955502564,0.3608,97565.0,97555.0,0.12147203]
[1738955502868,0.3608,97556.0,97555.0,0.12147203]
[1738955503062,0.3608,97556.0,97555.0,0.00015377]
[1738955503661,0.3608,97556.0,97555.0,0.20509457]
[1738955504264,0.3608,97565.0,97555.0,0.00115377]
[1738955504457,0.3618,97565.0,97564.0,0.2049219]
[1738955505058,0.3608,97565.0,97564.0,0.2049219]
[1738955505656,0.3608,97578.0,97555.0,0.24379029]
[1738955505660,0.3608,97569.0,97558.0,0.3608]
[1738955505863,0.3608,97569.0,97568.0,0.2049135]
[1738955506167,0.3608,97578.0,97577.0,0.1639046]
[1738955506666,0.15081308,97584.0,97583.0,0.204882]
[1738955508073,0.15081308,97584.0,97583.0,0.205882]
[1738955508255,0.15081308,97584.0,97583.0,0.281602]
[1738955508465,0.04098,97591.0,97583.0,0.07672]
[1738955508661,0.04098,97591.0,97588.0,0.2048699]
[1738955508967,0.36233793,97592.0,97584.0,0.1443]
[1738955509164,0.36233793,97592.0,97583.0,0.07672]
[1738955509374,0.5656799,97584.0,97583.0,0.002]
[1738955509863,0.2048925,97578.0,97577.0,0.00015377]
[1738955510056,0.5656925,97578.0,97577.0,0.00015377]
[1738955511172,0.3618,97578.0,97550.0,0.12131826]
[1738955511354,0.3608,97551.0,97550.0,0.12131826]
[1738955511557,0.3608,97551.0,97545.0,0.07472]
[1738955512966,0.3608,97551.0,97550.0,0.2049513]
[1738955513264,0.3608,97551.0,97545.0,0.07472]
[1738955513668,0.3608,97551.0,97550.0,0.008]
[1738955514259,0.3608,97551.0,97550.0,0.005]
[1738955515569,0.3608,97551.0,97550.0,0.012]
[1738955515761,0.5657492,97551.0,97550.0,0.012]
[1738955519469,0.61558457,97551.0,97538.0,0.00015377]
[1738955519671,0.3608,97539.0,97538.0,0.00015377]
[1738955519870,0.3608,97539.0,97538.0,0.20513027]
[1738955520673,0.3608,97539.0,97538.0,0.21213027]
[1738955520876,0.3608,97539.0,97538.0,0.22113027]
[1738955521075,0.3608,97539.0,97538.0,0.02897813]
[1738955521275,0.3608,97539.0,97538.0,0.02197813]
[1738955521276,0.5657744,97539.0,97538.0,0.02197813]
[1738955521471,0.5657744,97539.0,97538.0,0.02497813]
[1738955522771,0.3608,97539.0,97538.0,0.02497813]
[1738955523078,0.001,97539.0,97538.0,0.02397813]
[1738955523383,0.001,97539.0,97538.0,0.22895463]
[1738955523772,0.001,97539.0,97538.0,0.02297813]
[1738955524081,0.3618,97539.0,97538.0,0.02297813]
[1738955525472,0.001,97539.0,97538.0,0.22795463]
[1738955527179,0.3618,97539.0,97538.0,0.22795463]
[1738955530288,0.00290203,97546.0,97545.0,0.2049618]
[1738955530582,0.3608,97551.0,97550.0,0.2049513]
[1738955531187,0.3608,97551.0,97543.0,0.1371]
[1738955531188,0.7216,97551.0,97543.0,0.1371]
[1738955531388,0.7216,97551.0,97545.0,0.002]
[1738955531584,0.2049564,97548.0,97545.0,0.002]
[1738955531782,0.72288,97551.0,97545.0,0.002]
[1738955531982,0.2049579,97547.0,97538.0,0.01897813]
[1738955532292,0.3608,97541.0,97538.0,0.01897813]
[1738955532785,0.3608,97541.0,97538.0,0.01297813]
[1738955533789,0.3608,97541.0,97538.0,0.01897813]
[1738955534186,0.3608,97541.0,97538.0,0.02297813]
[1738955534390,0.2049744,97539.0,97538.0,0.02297813]
[1738955535191,0.3608,97541.0,97538.0,0.22795453]
[1738955535588,0.3608,97541.0,97538.0,0.02297813]
[1738955535893,0.001,97539.0,97538.0,0.02297813]
[1738955536595,0.3608,97541.0,97538.0,0.02197813]
[1738955537399,0.001,97539.0,97538.0,0.02297813]
[1738955537893,0.001,97539.0,97538.0,0.01897813]
[1738955538101,0.001,97539.0,97538.0,0.02297813]
[1738955538886,0.3608,97541.0,97538.0,0.02097813]
[1738955539599,0.3608,97541.0,97538.0,0.01597813]
[1738955539798,0.3608,97541.0,97538.0,0.02097813]
[1738955540182,0.3608,97541.0,97538.0,0.01997813]
[1738955540390,0.2049744,97539.0,97538.0,0.01497813]
[1738955540697,0.2049744,97539.0,97538.0,0.01897813]
[1738955541401,0.2049744,97539.0,97538.0,0.00615377]
[1738955542090,0.2049744,97539.0,97538.0,0.00715377]
[1738955542790,0.2049744,97539.0,97538.0,0.00015377]
[1738955542992,0.1452,97540.0,97538.0,0.00815377]
[1738955543199,0.3608,97541.0,97540.0,0.2049723]
[1738955544183,0.3608,97541.0,97538.0,0.00815377]
[1738955544589,0.3608,97541.0,97540.0,0.002]
[1738955545199,0.5657702,97541.0,97540.0,0.002]
[1738955545898,0.5657702,97541.0,97540.0,0.006]
[1738955546101,0.5657702,97541.0,97540.0,0.004]
[1738955546286,0.3608,97541.0,97502.0,1.11864]
[1738955546488,0.3608,97513.0,97510.0,0.12131826]
[1738955546799,0.3608,97513.0,97506.0,0.1314]
[1738955546800,0.3608,97524.0,97519.0,0.2050149]
[1738955547000,0.3608,97524.0,97520.0,0.205014]
[1738955547298,0.3608,97524.0,97514.0,0.12131826]
[1738955547696,0.00015377,97532.0,97516.0,0.3608]
[1738955547894,0.00015377,97532.0,97522.0,0.32632766]
[1738955548095,0.00015377,97532.0,97523.0,0.1408]
[1738955548296,0.00015377,97532.0,97523.0,0.3458071]
[1738955548799,0.00115377,97532.0,97523.0,0.3458071]
[1738955548998,0.001,97524.0,97523.0,0.3458071]
[1738955549399,0.001,97524.0,97523.0,0.1408]
[1738955549601,0.001,97524.0,97523.0,0.1488]
[1738955551090,0.002,97524.0,97523.0,0.1498]
[1738955551498,0.3628,97524.0,97523.0,0.1498]
[1738955552005,0.3618,97524.0,97523.0,0.1498]
[1738955552800,0.001,97524.0,97523.0,0.1498]
[1738955553792,0.5668059,97524.0,97523.0,0.009]
[1738955554298,0.5678059,97524.0,97523.0,0.018]
[1738955554504,0.2050249,97515.0,97496.0,0.2050648]
[1738955554707,0.5658291,97513.0,97494.0,0.07464]
[1738955555401,0.5658291,97513.0,97491.0,0.1318]
[1738955555402,0.2050634,97497.0,97491.0,0.1318]
[1738955555602,0.3608,97492.0,97491.0,0.1318]
[1738955556702,0.3608,97492.0,97491.0,0.01246906]
[1738955556897,0.3608,97492.0,97487.0,0.1396]
[1738955557104,0.2050816,97488.0,97487.0,0.01265639]
[1738955557294,0.3618,97492.0,97482.0,0.00015386]
[1738955557496,0.3608,97483.0,97482.0,0.00015386]
[1738955559094,0.3618,97483.0,97482.0,0.00015386]
[1738955559502,0.3618,97483.0,97482.0,0.00715386]
[1738955560005,0.3618,97483.0,97482.0,0.01944314]
[1738955560190,0.3628,97483.0,97482.0,0.02144314]
[1738955561696,0.002,97483.0,97482.0,0.02144314]
[1738955562399,0.002,97483.0,97482.0,0.22653744]
[1738955562794,0.002,97483.0,97482.0,0.02144314]
[1738955563509,0.3628,97483.0,97482.0,0.02144314]
[1738955564313,0.5678922,97483.0,97482.0,0.02144314]
[1738955565401,0.40383,97483.0,97482.0,0.02144314]
[1738955565707,0.6089222,97483.0,97482.0,0.00915386]
[1738955567103,0.6079222,97483.0,97482.0,0.01115386]
[1738955567312,0.6079222,97483.0,97482.0,0.00215386]
[1738955567504,0.6069222,97483.0,97482.0,0.00315386]
[1738955569810,0.2051214,97470.0,97467.0,0.205124]
[1738955570111,0.5659237,97468.0,97467.0,0.205124]
[1738955570419,0.3608,97468.0,97467.0,0.21758799]
[1738955571011,0.3608,97468.0,97467.0,0.22458799]
[1738955571408,0.3608,97468.0,97467.0,0.01946399]
[1738955571612,0.5659237,97468.0,97467.0,0.01946399]
[1738955572317,0.5669237,97468.0,97467.0,0.02546399]
[1738955573325,0.3628,97468.0,97467.0,0.02246399]
[1738955573520,0.002,97468.0,97467.0,0.22758979]
[1738955575016,0.002,97468.0,97467.0,0.02246399]
[1738955575621,0.04303,97468.0,97467.0,0.02246399]
[1738955579621,0.2481537,97468.0,97467.0,0.02246399]
[1738955580226,0.04303,97468.0,97467.0,0.02246399]
[1738955580427,0.04303,97468.0,97467.0,0.22758979]
[1738955580630,0.04303,97468.0,97467.0,0.58838979]
[1738955580829,0.3608,97474.0,97473.0,0.2051132]
[1738955581825,0.00015386,97477.0,97472.0,0.0746]
[1738955582030,0.00015386,97477.0,97476.0,0.5659069]
[1738955583126,1e-08,97477.0,97476.0,0.5659069]
[1738955583633,1e-08,97477.0,97476.0,0.5739069]
[1738955584136,0.12370722,97491.0,97490.0,0.2050774]
[1738955584331,0.12370722,97491.0,97490.0,0.2635574]
[1738955584736,0.12370722,97491.0,97490.0,0.5357574]
[1738955584925,0.12370722,97491.0,97490.0,0.6791574]
[1738955585230,0.12370722,97491.0,97490.0,0.4156]
[1738955585635,0.2050738,97492.0,97490.0,0.4156]
[1738955585833,0.3608,97493.0,97490.0,0.004]
[1738955586134,0.3608,97493.0,97481.0,0.00015386]
[1738955586135,0.2050943,97482.0,97481.0,0.00015386]
[1738955586331,0.5658943,97482.0,97481.0,0.00015386]
[1738955587335,0.5668943,97482.0,97481.0,0.00615386]
[1738955588621,0.3618,97482.0,97481.0,0.00715386]
[1738955589537,0.3608,97482.0,97481.0,0.00115386]
[1738955589835,0.3608,97482.0,97481.0,0.00315386]
[1738955591329,0.3608,97482.0,97463.0,0.5659327]
[1738955591330,0.36576,97482.0,97460.0,0.12131826]
[1738955591535,0.565926,97467.0,97460.0,0.12131826]
[1738955591737,0.3608,97467.0,97461.0,0.2051381]
[1738955591930,0.3608,97467.0,97466.0,0.2051279]
[1738955592530,0.3608,97467.0,97460.0,0.13380061]
[1738955592931,0.3618,97467.0,97460.0,0.13980061]
[1738955593136,0.7216,97464.0,97460.0,0.02048235]
[1738955593629,0.3608,97464.0,97460.0,0.02048235]
[1738955593834,0.3608,97464.0,97463.0,0.2051342]
[1738955594138,0.001,97467.0,97466.0,0.2051279]